bitfinex-derivatives/quotes_BTCF0:USTF0_20251230
["timestamp","ask_amount","ask_price","bid_price","bid_amount"]
[1767082448443,0.00017048,88013.0,87996.0,0.01154908]
[1767082448736,0.00017048,88013.0,87997.0,0.09668]
[1767082448925,0.0113751,88024.0,87998.0,0.0113783]
[1767082449131,0.15416,88029.0,88002.0,0.0113779]
[1767082449132,0.1655345,88029.0,88002.0,0.0113779]
[1767082449831,0.15416,88029.0,88006.0,0.0113774]
[1767082450037,0.00017048,88026.0,88007.0,0.09668]
[1767082450232,0.00017048,88026.0,88011.0,0.0113766]
[1767082450431,8e-08,88026.0,88015.0,0.0113762]
[1767082454645,8e-08,88026.0,88019.0,0.0113755]
[1767082454846,8e-08,88026.0,88020.0,0.15412]
[1767082455034,0.09668,88046.0,88021.0,0.05744]
[1767082455230,0.09668,88046.0,88021.0,0.15412]
[1767082455636,0.0113723,88045.0,88021.0,0.15412]
[1767082455944,0.0113729,88041.0,88020.0,0.05744]
[1767082456245,0.00017048,88039.0,88021.0,0.09668]
[1767082457047,0.00017048,88039.0,88017.0,0.0113759]
[1767082457247,0.00017048,88039.0,88014.0,0.00017048]
[1767082457548,0.00017048,88039.0,88018.0,0.05744]
[1767082458148,0.00017048,88039.0,88014.0,0.00017048]
[1767082458341,0.00017048,88039.0,88015.0,0.15412]
[1767082459235,0.00017048,88039.0,88016.0,0.0113761]
[1767082460240,0.00017048,88039.0,88020.0,0.0113755]
[1767082460642,0.00017048,88039.0,88015.0,0.1654961]
[1767082460950,0.0113744,88029.0,87995.0,0.06010282]
[1767082461144,0.09668,88028.0,88005.0,0.0113774]
[1767082462147,0.00017048,88025.0,88008.0,0.00017048]
[1767082462953,0.0113751,88024.0,88008.0,0.00017048]
[1767082463153,0.0113751,88024.0,88000.0,0.09668]
[1767082463348,0.0113756,88020.0,87993.0,0.011379]
[1767082463849,0.0113756,88020.0,87997.0,0.0113785]
[1767082464047,0.011375,88024.0,87997.0,0.0113785]
[1767082464248,0.011375,88024.0,88000.0,0.00017048]
[1767082464749,0.00017048,88025.0,88007.0,0.0113771]
[1767082464941,0.00017048,88025.0,88003.0,0.05744]
[1767082465345,0.0113751,88024.0,88000.0,0.00017048]
[1767082465541,0.0113759,88018.0,88000.0,0.00017048]
[1767082465845,0.15412,88017.0,88000.0,0.00017048]
[1767082466246,0.0113761,88016.0,88000.0,0.00017048]
[1767082466653,0.00017048,88025.0,88000.0,0.00017048]
[1767082466855,0.15412,88024.0,88000.0,0.00017048]
[1767082467042,0.15412,88024.0,88001.0,0.0113779]
[1767082468353,0.15412,88024.0,88005.0,0.0113774]
[1767082470652,0.15412,88024.0,88001.0,0.011378]
[1767082471454,0.1654951,88024.0,88001.0,0.011378]
[1767082471849,0.1654951,88024.0,88000.0,0.00017048]
[1767082471850,0.0113756,88020.0,88000.0,0.00017048]
[1767082472861,0.15412,88024.0,88000.0,0.00017048]
[1767082473162,0.00017048,88025.0,88014.0,0.0113763]
[1767082473657,8e-08,88025.0,88017.0,0.0113758]
[1767082474157,8e-08,88025.0,88005.0,0.06010282]
[1767082474361,8e-08,88025.0,88013.0,0.0113764]
[1767082474964,8e-08,88025.0,88017.0,0.0113759]
[1767082475860,8e-08,88025.0,88013.0,0.0113764]
[1767082476453,8e-08,88025.0,88017.0,0.0113759]
[1767082477258,8e-08,88025.0,88013.0,0.0113764]
[1767082477563,8e-08,88025.0,88010.0,0.09668]
[1767082478065,8e-08,88025.0,88010.0,0.15408]
[1767082478965,8e-08,88025.0,88008.0,0.06050524]
[1767082479166,0.09668,88024.0,88008.0,0.06050524]
[1767082479872,0.09668,88024.0,88001.0,0.0304]
[1767082480168,8e-08,88025.0,88001.0,0.0304]
[1767082480357,0.09668008,88025.0,88006.0,0.0113773]
[1767082480865,0.09668008,88025.0,88001.0,0.0113779]
[1767082481470,0.011375,88024.0,88001.0,0.0113779]
[1767082481857,0.09668008,88025.0,88001.0,0.0113779]
[1767082483560,0.09668008,88025.0,88000.0,0.06069431]
[1767082483763,0.0113754,88022.0,88000.0,0.06069431]
[1767082484266,0.09668008,88025.0,88000.0,0.06069431]
[1767082484966,4e-08,88001.0,88000.0,0.06069431]
[1767082488774,4e-08,88001.0,87992.0,0.13809844]
[1767082489766,4e-08,88001.0,87992.0,0.08069844]
[1767082490379,4e-08,88001.0,87988.0,0.00017048]
[1767082491472,0.0113786,87997.0,87975.0,0.09668]
[1767082491676,0.0113786,87997.0,87970.0,0.21472828]
[1767082491867,0.0113786,87997.0,87974.0,0.05736]
[1767082492063,0.0113786,87997.0,87970.0,0.21472828]
[1767082492263,0.0113796,87989.0,87970.0,0.20334638]
[1767082492479,0.15404,87988.0,87971.0,0.00017048]
[1767082492668,0.09668,87987.0,87971.0,0.00017048]
[1767082492870,0.0113799,87986.0,87971.0,0.00017048]
[1767082493074,0.09668,87987.0,87958.0,0.26772338]
[1767082493075,0.0113806,87981.0,87958.0,0.26772338]
[1767082493268,0.16500239,87981.0,87958.0,0.26772338]
[1767082493475,0.0113813,87976.0,87941.0,0.00985]
[1767082493770,0.15404,87975.0,87942.0,0.0113856]
[1767082493969,0.00017048,87967.0,87942.0,0.0113856]
[1767082494169,0.00017048,87967.0,87941.0,0.00985]
[1767082494567,0.0113825,87966.0,87941.0,0.00985]
[1767082494874,0.0113838,87956.0,87941.0,1e-08]
[1767082495074,0.0113847,87949.0,87922.0,0.09335774]
[1767082495269,0.00017048,87944.0,87922.0,0.09335774]
[1767082495464,0.0113857,87942.0,87922.0,0.09335774]
[1767082495670,0.0113857,87942.0,87903.0,0.0113907]
[1767082495879,0.0113857,87942.0,87910.0,9.792e-05]
[1767082496178,9.792e-05,87941.0,87910.0,9.792e-05]
[1767082497677,0.15408,87940.0,87912.0,0.0113895]
[1767082499081,0.15408,87940.0,87910.0,9.792e-05]
[1767082499282,0.0113861,87939.0,87910.0,9.792e-05]
[1767082499683,0.0113867,87934.0,87908.0,0.00227512]
[1767082499877,0.30770179,87940.0,87908.0,0.00227512]
[1767082500390,0.011387,87932.0,87908.0,0.00227512]
[1767082500598,0.0574,87931.0,87908.0,0.00227512]
[1767082500881,0.0574,87930.0,87908.0,0.01366512]
[1767082501090,9.792e-05,87941.0,87913.0,0.0113894]
[1767082501285,0.10308,87940.0,87917.0,0.0113887]
[1767082501782,9.792e-05,87941.0,87917.0,0.0113887]
[1767082502085,0.10317792,87941.0,87917.0,0.0113887]
[1767082502290,0.10317792,87941.0,87926.0,0.0113877]
[1767082502494,0.0113823,87968.0,87924.0,0.0574]
[1767082502683,1.0243348,87994.0,87924.0,0.0574]
[1767082502684,0.09672,87967.0,87938.0,0.0113861]
[1767082502884,0.09672,87966.0,87938.0,0.0113861]
[1767082503181,0.09672,87966.0,87941.0,0.0113857]
[1767082503385,0.09672,87966.0,87940.0,9.792e-05]
[1767082503574,0.00017058,87962.0,87945.0,0.00017058]
[1767082504489,0.0113804,87983.0,87950.0,0.15362179]
[1767082504684,0.0113813,87976.0,87941.0,0.0113857]
[1767082504890,0.09672,87975.0,87941.0,0.0113857]
[1767082505187,0.09672,87975.0,87937.0,0.15412]
[1767082505188,0.09672,87974.0,87950.0,0.15362179]
[1767082505487,0.09672,87978.0,87954.0,0.011384]
[1767082505988,0.15412,87980.0,87954.0,0.011384]
[1767082506284,0.03354176,87979.0,87953.0,0.00017058]
[1767082506584,0.00017058,87975.0,87953.0,0.00017058]
[1767082506990,0.00227357,87968.0,87955.0,9.792e-05]
[1767082507181,0.15412,87972.0,87955.0,9.792e-05]
[1767082507382,0.00017058,87975.0,87956.0,0.0113838]
[1767082507585,0.00017058,87975.0,87955.0,9.792e-05]
[1767082507886,0.00017058,87975.0,87956.0,0.0113837]
[1767082508592,0.15412,87980.0,87956.0,0.0113837]
[1767082508889,0.15412,87980.0,87961.0,0.0113832]
[1767082509091,0.0113796,87989.0,87961.0,0.0113832]
[1767082509289,0.0113798,87987.0,87960.0,0.09672]
[1767082509585,0.00017058,87982.0,87965.0,0.00017058]
[1767082510685,0.00017058,87982.0,87969.0,9.792e-05]
[1767082510881,0.15412,87987.0,87969.0,9.792e-05]
[1767082511079,0.03359272,87986.0,87969.0,9.792e-05]
[1767082511280,0.15412,87987.0,87969.0,0.01148002]
[1767082511487,0.09672,87994.0,87969.0,0.01148002]
[1767082511784,0.15412,87994.0,87969.0,0.01148002]
[1767082511990,0.00017048,87990.0,87970.0,0.30774179]
[1767082512377,0.00017048,87990.0,87970.0,0.15412]
[1767082512583,0.00017048,87990.0,87971.0,0.0113818]
[1767082513085,0.0113779,88002.0,87975.0,0.0113813]
[1767082513284,0.15412,88005.0,87972.0,0.11366155]
[1767082513484,0.15412,88005.0,87978.0,0.011381]
[1767082513787,0.0113778,88003.0,87978.0,0.011381]
[1767082514086,0.000113,87998.0,87969.0,9.792e-05]
[1767082514289,0.0113792,87992.0,87966.0,0.09672]
[1767082514596,0.0113807,87981.0,87965.0,0.00017058]
[1767082514791,0.1655007,87981.0,87965.0,0.00017058]
[1767082515094,0.15412,87981.0,87965.0,0.00017058]
[1767082515390,0.15412,87981.0,87965.0,0.0002685]
[1767082515987,0.0574,87985.0,87965.0,0.0116511]
[1767082516194,0.0574,87985.0,87965.0,0.0002685]
[1767082516994,0.0113803,87984.0,87965.0,0.0002685]
[1767082517379,0.0574,87985.0,87965.0,0.0002685]
[1767082517583,0.0113803,87983.0,87965.0,0.0002685]
[1767082517995,0.0574,87985.0,87965.0,0.0002685]
[1767082518587,0.0113798,87988.0,87965.0,0.0002685]
[1767082518787,0.09672,87987.0,87965.0,0.0002685]
[1767082518987,0.0574,87986.0,87965.0,0.0002685]
[1767082520284,0.0574,87986.0,87969.0,0.011382]
[1767082520495,0.0574,87986.0,87965.0,0.0116511]
[1767082521293,0.0574,87986.0,87968.0,0.0113822]
[1767082521499,0.09672,87987.0,87971.0,0.0113819]
[1767082521798,0.0574,87992.0,87975.0,0.0113813]
[1767082521994,0.000113,87998.0,87978.0,0.0113809]
[1767082522190,4e-08,88001.0,87988.0,0.15362179]
[1767082522385,4e-08,88001.0,87983.0,0.15412]
[1767082522587,4e-08,88001.0,87984.0,0.0574]
[1767082522788,4e-08,88001.0,87985.0,0.01138]
[1767082523594,4e-08,88001.0,87989.0,0.0113794]
[1767082524600,4e-08,88001.0,87984.0,0.06895058]
[1767082525802,4e-08,88001.0,87984.0,0.05757048]
[1767082530102,4e-08,88001.0,87984.0,0.00017048]
[1767082530290,4e-08,88001.0,87985.0,0.15408]
[1767082531201,4e-08,88001.0,87985.0,0.15327134]
[1767082531600,4e-08,88001.0,87988.0,0.0113796]
[1767082531897,4e-08,88001.0,87989.0,0.05736]
[1767082532104,0.0113786,87996.0,87984.0,0.00017048]
[1767082532401,0.0113806,87982.0,87955.0,0.011384]
[1767082532588,0.0113808,87980.0,87967.0,9.792e-05]
[1767082532788,0.0334896,87979.0,87967.0,9.792e-05]
[1767082533090,0.09672,87986.0,87967.0,0.01148022]
[1767082533287,0.03365711,87985.0,87968.0,0.00017048]
[1767082533502,0.03348663,87984.0,87968.0,0.00017048]
[1767082533804,0.00017048,87985.0,87974.0,0.0113814]
[1767082533992,0.00017048,87985.0,87970.0,0.011382]
[1767082534198,0.00017048,87985.0,87968.0,0.09689048]
[1767082534802,0.00017048,87985.0,87969.0,0.0113821]
[1767082535104,0.00017048,87985.0,87972.0,0.0113816]
[1767082535293,0.00017048,87985.0,87968.0,0.10827268]
[1767082536802,0.00017048,87985.0,87968.0,0.09689048]
[1767082537796,0.00017048,87985.0,87969.0,0.05736]
[1767082538704,0.01155058,87985.0,87968.0,0.00017048]
[1767082538910,0.0113806,87982.0,87968.0,0.00017048]
[1767082540193,0.0113806,87982.0,87967.0,9.792e-05]
[1767082540607,0.0113806,87982.0,87972.0,9.792e-05]
[1767082541307,0.0113806,87982.0,87964.0,0.05736]
[1767082541308,0.0113806,87982.0,87968.0,0.00017048]
[1767082542504,0.0113809,87979.0,87959.0,0.05732]
[1767082542705,0.09672,87983.0,87940.0,0.00012544]
[1767082542899,0.0113821,87970.0,87944.0,0.0113853]
[1767082543100,0.0113821,87970.0,87947.0,0.11366865]
[1767082543298,0.0113821,87970.0,87945.0,0.15404]
[1767082543299,0.0113825,87967.0,87945.0,0.18444]
[1767082543498,0.00017048,87965.0,87947.0,0.00017048]
[1767082545312,0.00017048,87965.0,87947.0,0.01155538]
[1767082545605,0.00017048,87965.0,87947.0,0.00017048]
[1767082547519,8e-08,87965.0,87958.0,0.0113835]
[1767082547706,0.08166351,88010.0,87959.0,0.15404]
[1767082547914,0.09672,87997.0,87972.0,0.0113816]
[1767082548211,0.09672,87997.0,87975.0,0.0113813]
[1767082548803,0.00017048,87995.0,87977.0,0.00017048]
[1767082550004,0.3577472,88053.0,87977.0,0.00017048]
[1767082550214,1.00179161,88206.0,87972.0,0.15408]
[1767082550215,0.0022697,88118.0,88051.0,0.0113714]
[1767082550419,0.0022697,88118.0,88052.0,0.3964]
[1767082550420,0.03068278,88114.0,88052.0,0.3964]
[1767082550711,0.0022697,88118.0,88078.0,0.0300951]
[1767082551009,0.00016975,88106.0,88089.0,0.00017027]
[1767082551508,0.10681937,88101.0,88089.0,0.00017027]
[1767082551815,0.00016975,88106.0,88091.0,0.0300951]
[1767082552012,0.00016975,88106.0,88092.0,0.0614381]
[1767082552310,0.0022697,88118.0,88092.0,0.0614381]
[1767082552311,0.0022697,88118.0,88093.0,0.05792]
[1767082552514,0.0022697,88118.0,88093.0,0.1846951]
[1767082552713,0.0022697,88118.0,88094.0,0.06138659]
[1767082552914,0.0613631,88117.0,88094.0,0.15456]
[1767082553121,0.15456,88116.0,88093.0,0.0300951]
[1767082553305,0.15456,88116.0,88090.0,0.0300951]
[1767082553502,0.0113634,88115.0,88090.0,0.0300951]
[1767082553709,0.011364,88110.0,88089.0,0.00017027]
[1767082554016,0.0113647,88105.0,88089.0,0.00017027]
[1767082554216,0.09668,88104.0,88085.0,0.0300951]
[1767082554407,0.09668,88104.0,88083.0,0.0300951]
[1767082554913,0.05788,88103.0,88081.0,0.0300951]
[1767082555111,0.05788,88103.0,88076.0,0.0300951]
[1767082555112,0.0113657,88097.0,88076.0,0.0300951]
[1767082555412,0.0113657,88097.0,88083.0,7e-08]
[1767082561319,0.00017027,88101.0,88083.0,7e-08]
[1767082561522,0.05,88117.0,88104.0,0.12142973]
[1767082561523,0.09664,88111.0,88104.0,0.12142973]
[1767082561721,0.05,88117.0,88104.0,0.12142973]
[1767082563027,0.0567829,88168.0,88105.0,0.11349385]
[1767082563325,0.0113603,88139.0,88102.0,0.00017027]
[1767082563518,0.0113603,88139.0,88103.0,0.0113648]
[1767082563718,0.0113603,88139.0,88103.0,0.12485865]
[1767082563924,0.13116,88138.0,88103.0,0.12485865]
[1767082564119,0.0113605,88137.0,88103.0,0.12485865]
[1767082564324,0.0113611,88132.0,88103.0,0.11349385]
[1767082565117,0.13276,88131.0,88103.0,0.11349385]
[1767082565415,0.0578,88130.0,88119.0,0.0401268]
[1767082565623,0.0691615,88129.0,88111.0,3e-08]
[1767082566432,0.0113631,88117.0,88111.0,3e-08]
[1767082566619,0.0113633,88115.0,88102.0,0.00017027]
[1767082566922,0.0966,88114.0,88102.0,0.00017027]
[1767082568025,0.0966,88114.0,88103.0,0.12142973]
[1767082569121,0.0113641,88109.0,88096.0,0.0601902]
[1767082569330,0.011364,88110.0,88092.0,0.0601902]
[1767082570044,0.011364,88110.0,88083.0,0.1216]
[1767082570045,0.0113648,88104.0,88090.0,0.0601902]
[1767082570218,0.0113648,88104.0,88089.0,0.0601902]
[1767082570528,0.11468,88103.0,88089.0,0.0601902]
[1767082571229,0.15436,88102.0,88090.0,0.0601902]
[1767082571431,0.15436,88102.0,88091.0,0.0601902]
[1767082571633,0.15436,88102.0,88090.0,0.0601902]
[1767082571927,0.15436,88102.0,88088.0,0.00017027]
[1767082571928,0.15436,88102.0,88088.0,0.05809]
[1767082572428,0.0113652,88101.0,88079.0,0.1216]
[1767082572728,0.01153477,88106.0,88081.0,0.0113677]
[1767082573032,0.11564,88105.0,88081.0,0.01153797]
[1767082573333,0.0113648,88104.0,88081.0,0.00017027]
[1767082574028,0.0113657,88096.0,88081.0,0.00017027]
[1767082574230,0.11564,88105.0,88085.0,0.0802536]
[1767082574432,0.0113654,88099.0,88088.0,0.0802536]
[1767082574628,0.0113661,88094.0,88081.0,0.00017027]
[1767082574824,0.0113663,88092.0,88081.0,7e-08]
[1767082575021,0.0966,88091.0,88072.0,0.10031701]
[1767082575232,0.0113671,88086.0,88063.0,0.10031701]
[1767082575531,0.01584782,88091.0,88061.0,0.10031701]
[1767082575735,0.0113668,88088.0,88059.0,0.11353121]
[1767082575929,0.0113668,88088.0,88056.0,0.10031701]
[1767082576131,0.00017027,88081.0,88063.0,0.00017027]
[1767082576326,0.05772,88080.0,88063.0,0.00017027]
[1767082576631,0.0966,88079.0,88063.0,0.00012027]
[1767082577427,0.09655,88078.0,88066.0,0.10031701]
[1767082577633,0.09655,88078.0,88063.0,0.00012027]
[1767082577634,0.09655,88078.0,88067.0,0.03612231]
[1767082577836,0.09655,88078.0,88068.0,0.03612231]
[1767082578037,0.09655,88078.0,88069.0,0.03612231]
[1767082578333,0.09655,88078.0,88070.0,0.03612231]
[1767082578535,0.09655,88078.0,88071.0,0.03612231]
[1767082578729,0.09655,88078.0,88072.0,0.03612231]
[1767082578939,0.09655,88078.0,88073.0,0.03612231]
[1767082579136,0.05772,88080.0,88074.0,0.03612231]
[1767082579434,0.05772,88080.0,88063.0,0.01149017]
[1767082579435,0.15432,88083.0,88075.0,0.03612231]
[1767082579737,0.15432,88083.0,88076.0,0.03612231]
[1767082580037,0.15432,88083.0,88066.0,0.10031701]
[1767082580237,0.0690876,88082.0,88066.0,0.00017027]
[1767082580434,0.05772,88081.0,88066.0,0.00017027]
[1767082580636,0.05772,88081.0,88053.0,3e-08]
[1767082580840,0.05772,88081.0,88039.0,0.0966]
[1767082580841,0.0113695,88067.0,88039.0,0.0966]
[1767082581139,0.0113703,88061.0,88041.0,0.11354024]
[1767082581324,0.15432,88060.0,88041.0,0.11354024]
[1767082581524,0.05772,88060.0,88036.0,0.0113734]
[1767082581725,0.00017027,88057.0,88039.0,0.00017027]
[1767082581927,0.011367,88087.0,88039.0,0.00017027]
[1767082582124,0.0113638,88112.0,88065.0,0.0113697]
[1767082582334,0.0113657,88097.0,88069.0,0.0113691]
[1767082582538,0.0113657,88097.0,88072.0,0.0113687]
[1767082582738,0.0966,88099.0,88069.0,0.15436]
[1767082583239,0.0113665,88091.0,88075.0,0.00017027]
[1767082583540,0.0113674,88084.0,88063.0,0.11352799]
[1767082583939,0.0113666,88090.0,88063.0,0.01137]
[1767082584238,0.0966,88091.0,88063.0,0.11352799]
[1767082584434,0.0966,88091.0,88069.0,0.0113692]
[1767082584635,0.1079664,88091.0,88068.0,0.00017027]
[1767082585131,0.0966,88091.0,88068.0,0.01153957]
[1767082585743,0.00448653,88091.0,88068.0,0.01153957]
[1767082586437,0.00448653,88091.0,88069.0,0.11353379]
[1767082586742,0.0113625,88121.0,88074.0,0.0113686]
[1767082587045,0.0113643,88107.0,88080.0,0.0113678]
[1767082587343,0.0966,88106.0,88080.0,0.0113678]
[1767082587735,0.0966,88110.0,88084.0,0.00017027]
[1767082587928,0.107964,88110.0,88085.0,0.15436]
[1767082588135,0.0113664,88091.0,88074.0,0.05776]
[1767082588840,0.01153667,88091.0,88074.0,0.05793027]
[1767082589033,0.00017027,88091.0,88074.0,0.05793027]
[1767082589446,0.00017027,88091.0,88075.0,0.0113684]
[1767082589644,0.0966,88103.0,88079.0,0.0113679]
[1767082589943,0.0113662,88093.0,88079.0,0.05776]
[1767082590146,0.0113662,88093.0,88068.0,0.09163272]
[1767082590441,0.0113662,88093.0,88069.0,0.15436]
[1767082590643,5e-05,88089.0,88072.0,0.00017027]
[1767082591047,5e-05,88089.0,88079.0,0.08026342]
[1767082591644,0.0113662,88093.0,88079.0,0.08026342]
[1767082591845,0.0113662,88093.0,88076.0,0.08026342]
[1767082592139,0.0966,88097.0,88077.0,0.11037152]
[1767082592340,0.0113658,88096.0,88078.0,0.0301081]
[1767082592556,0.0113658,88096.0,88079.0,0.0301081]
[1767082592746,0.0113663,88092.0,88075.0,0.13802342]
[1767082593251,0.0113663,88092.0,88076.0,0.08026342]
[1767082593447,0.0966,88097.0,88075.0,0.13802342]
[1767082593644,0.1079657,88097.0,88075.0,0.05776]
[1767082593840,0.0113663,88092.0,88074.0,0.05772]
[1767082595249,0.0113671,88086.0,88074.0,0.05772]
[1767082595955,0.0113686,88074.0,88067.0,7e-08]
[1767082596148,0.0966,88088.0,88065.0,0.05772]
[1767082596347,0.0966,88087.0,88065.0,0.05772]
[1767082596757,0.011368,88079.0,88065.0,0.05772]
[1767082597145,0.00017027,88081.0,88054.0,0.04017237]
[1767082597347,0.0113694,88068.0,88058.0,1.24e-06]
[1767082597544,0.0966,88071.0,88058.0,1.24e-06]
[1767082597751,0.00017027,88081.0,88058.0,0.05772124]
[1767082597957,0.0113683,88077.0,88058.0,0.05772124]
[1767082598250,0.0113689,88072.0,88059.0,0.00017027]
[1767082598656,0.0113683,88077.0,88059.0,0.00017027]
[1767082598846,0.01153797,88081.0,88059.0,0.00017027]
[1767082599048,0.00017027,88081.0,88062.0,0.01137]
[1767082599458,0.00017027,88081.0,88063.0,0.05776]
[1767082599659,0.00017027,88081.0,88064.0,0.0113698]
[1767082599856,0.00017027,88081.0,88063.0,0.05776]
[1767082600357,0.00017027,88081.0,88063.0,0.15436]
[1767082600552,0.00017027,88081.0,88063.0,0.19453237]
[1767082600751,0.00017027,88081.0,88064.0,0.04017237]
[1767082600953,0.01153807,88081.0,88063.0,0.15436]
[1767082601159,0.01153807,88081.0,88063.0,0.19453237]
[1767082601357,0.0113684,88076.0,88062.0,0.04017237]
[1767082601549,0.0113684,88076.0,88059.0,0.00017027]
[1767082603067,0.0113692,88070.0,88058.0,1.24e-06]
[1767082603654,0.0113696,88067.0,88058.0,1.24e-06]
[1767082604055,0.0113702,88062.0,88038.0,0.0113731]
[1767082604257,0.0113702,88062.0,88040.0,0.1534256]
[1767082604654,0.0966,88063.0,88041.0,0.0113728]
[1767082605055,0.00017027,88061.0,88043.0,0.00017027]
[1767082606361,0.09677027,88061.0,88043.0,0.00017027]
[1767082606560,0.0113704,88060.0,88043.0,0.00017027]
[1767082606973,0.09677027,88061.0,88043.0,0.00017027]
[1767082607462,0.0966,88060.0,88043.0,0.00017027]
[1767082608569,0.00017027,88061.0,88043.0,0.00017027]
[1767082608867,0.0966,88060.0,88043.0,0.00017027]
[1767082609566,0.00017027,88061.0,88043.0,0.00017027]
[1767082609875,0.0966,88060.0,88043.0,0.00017027]
[1767082612265,0.0966,88060.0,88043.0,0.01154277]
[1767082614468,7e-08,88061.0,88058.0,0.0113706]
[1767082614665,0.00227047,88088.0,88067.0,0.0113694]
[1767082614967,0.00227047,88088.0,88066.0,0.0113696]
[1767082614968,0.01027047,88088.0,88066.0,0.0113696]
[1767082615168,0.02163737,88088.0,88066.0,0.0113696]
[1767082615468,0.02163737,88088.0,88062.0,0.0690501]
[1767082615671,0.00017027,88084.0,88066.0,0.00017027]
[1767082616665,0.00017027,88084.0,88067.0,0.0113694]
[1767082617261,0.00017027,88084.0,88066.0,0.00017027]
[1767082617564,0.00017027,88084.0,88066.0,2.7e-07]
[1767082617862,0.0113692,88070.0,88066.0,2.7e-07]
[1767082618267,0.0568046,88134.0,88066.0,2.7e-07]
[1767082618461,0.00226815,88178.0,88140.0,0.1534256]
[1767082618663,0.011354,88187.0,88147.0,0.0113592]
[1767082618862,0.0966,88195.0,88150.0,0.06012069]
[1767082619062,0.0966,88194.0,88151.0,0.12660181]
[1767082619372,0.00017015,88181.0,88165.0,0.0113568]
[1767082619571,0.0966,88194.0,88164.0,0.00017015]
[1767082619572,0.0966,88194.0,88171.0,0.1647815]
[1767082619763,0.0966,88194.0,88164.0,0.00017015]
[1767082619764,0.0966,88203.0,88180.0,0.1534256]
[1767082620268,0.05796,88217.0,88190.0,0.1534256]
[1767082620472,0.0966,88216.0,88200.0,0.1534256]
[1767082620868,0.00017004,88217.0,88200.0,0.1534256]
[1767082621073,0.00017004,88217.0,88199.0,0.00017004]
[1767082621368,0.0966,88230.0,88199.0,0.00017004]
[1767082621569,0.09839648,88238.0,88210.0,0.1534256]
[1767082621770,0.00179648,88238.0,88220.0,0.1534256]
[1767082621971,0.05804,88260.0,88228.0,0.1534256]
[1767082622166,0.0113441,88264.0,88226.0,0.05804]
[1767082622360,0.00226584,88268.0,88240.0,0.1534256]
[1767082622584,0.00226584,88268.0,88241.0,0.15468]
[1767082623076,0.00226584,88268.0,88235.0,0.00017004]
[1767082623077,0.0113438,88267.0,88242.0,0.11332086]
[1767082623262,0.011344,88265.0,88242.0,0.11332086]
[1767082623459,0.15472,88266.0,88235.0,0.00017004]
[1767082623865,0.0113454,88254.0,88235.0,4e-08]
[1767082624060,0.0113463,88248.0,88203.0,0.0113519]
[1767082624265,0.09656,88248.0,88201.0,0.09051119]
[1767082624461,0.09656,88248.0,88204.0,0.11330866]
[1767082624666,0.09656,88248.0,88205.0,0.15472]
[1767082625061,0.00017004,88235.0,88218.0,0.00017004]
[1767082625267,0.09652,88234.0,88218.0,0.00017004]
[1767082625473,0.011349,88226.0,88206.0,0.11334591]
[1767082625669,0.011349,88226.0,88196.0,0.02945934]
[1767082625670,0.0113481,88233.0,88207.0,0.05812]
[1767082626470,0.00017004,88229.0,88211.0,0.00017004]
[1767082626665,0.00017004,88229.0,88211.0,4e-08]
[1767082626970,0.0113504,88216.0,88211.0,4e-08]
[1767082627176,0.0113507,88213.0,88184.0,0.05812]
[1767082627373,0.0113511,88210.0,88184.0,0.05812]
[1767082627577,0.0113511,88210.0,88182.0,0.05812]
[1767082627971,0.09652,88212.0,88189.0,1e-08]
[1767082627972,0.0113519,88204.0,88189.0,1e-08]
[1767082628173,0.0113522,88202.0,88171.0,0.09652]
[1767082628366,0.0113522,88202.0,88159.0,0.0113575]
[1767082628367,0.0113522,88202.0,88163.0,0.02945934]
[1767082628571,0.0113522,88202.0,88166.0,0.05803]
[1767082628784,0.05812,88203.0,88172.0,0.11339604]
[1767082629076,8.365e-05,88202.0,88180.0,0.1534256]
[1767082629270,0.0113503,88216.0,88180.0,0.2499456]
[1767082629271,0.09647,88215.0,88180.0,0.2499456]
[1767082629472,0.0113485,88230.0,88190.0,0.1534256]
[1767082629677,0.011349,88226.0,88191.0,0.05808]
[1767082629880,0.2101553,88250.0,88191.0,0.05808]
[1767082629881,0.0567254,88257.0,88200.0,0.1534256]
[1767082630090,0.0567194,88267.0,88210.0,0.1534256]
[1767082630380,0.0113477,88237.0,88211.0,0.09652]
[1767082630574,0.0113485,88230.0,88189.0,0.02945934]
[1767082630777,0.09648,88232.0,88202.0,0.11332921]
[1767082630983,4.276e-05,88236.0,88210.0,0.1534256]
[1767082631176,0.09648,88235.0,88203.0,0.1546]
[1767082631383,0.0113481,88233.0,88203.0,0.1546]
[1767082631683,0.0113489,88227.0,88210.0,4e-08]
[1767082631977,0.00017004,88228.0,88210.0,0.15342564]
[1767082632186,0.00017004,88228.0,88210.0,4e-08]
[1767082633377,0.0113504,88216.0,88210.0,4e-08]
[1767082633575,0.0113504,88216.0,88187.0,0.09648]
[1767082633576,0.0113511,88210.0,88187.0,0.09648]
[1767082633981,4.276e-05,88215.0,88190.0,0.1534256]
[1767082634278,0.0113507,88214.0,88187.0,0.09648]
[1767082634476,0.00017004,88209.0,88192.0,0.00017004]
[1767082634884,0.01152124,88209.0,88192.0,0.00017004]
[1767082635074,0.0113518,88204.0,88192.0,4e-08]
[1767082635278,0.0113525,88199.0,88170.0,0.02945934]
[1767082635474,0.09648,88203.0,88180.0,0.1534256]
[1767082635886,0.0113521,88202.0,88179.0,0.09648]
[1767082636180,0.0113521,88202.0,88172.0,0.0113558]
[1767082636376,0.00017004,88196.0,88178.0,0.00011336]
[1767082636579,0.0113531,88195.0,88179.0,0.05812]
[1767082637075,0.0113531,88195.0,88178.0,0.09659336]
[1767082639378,0.00017004,88196.0,88178.0,0.00011336]
[1767082640377,0.00012004,88196.0,88178.0,0.00011336]
[1767082640778,0.00012004,88196.0,88178.0,0.00238151]
[1767082642175,0.00012004,88196.0,88178.0,0.03184085]
[1767082643285,0.00012004,88196.0,88182.0,0.02945934]
[1767082643882,0.0113535,88191.0,88178.0,0.00238151]
[1767082644080,4.276e-05,88190.0,88179.0,0.03285237]
[1767082644289,0.00012004,88196.0,88181.0,0.03910682]
[1767082644588,0.00012004,88196.0,88182.0,0.03285237]
[1767082644782,0.00012004,88196.0,88174.0,0.11677374]
[1767082644984,0.00012004,88196.0,88174.0,0.05808]
[1767082645887,0.00012004,88196.0,88176.0,5e-05]
[1767082646089,0.08026501,88301.0,88180.0,0.1534256]
[1767082646391,0.011351,88211.0,88186.0,0.05869374]
[1767082646685,0.011351,88211.0,88182.0,0.0113546]
[1767082646686,0.011351,88211.0,88191.0,0.05869374]
[1767082646871,0.011351,88211.0,88190.0,0.05869374]
[1767082647076,0.09648,88216.0,88191.0,0.05869374]
[1767082647270,0.09648,88216.0,88177.0,0.0113552]
[1767082647271,0.00017004,88209.0,88174.0,0.10031598]